bitfinex/quotes_ETHUSD_20250622
["timestamp","ask_amount","ask_price","bid_price","bid_amount"]
[1750601790415,8.703,2195.3,2195.2,14.55539358]
[1750601790666,8.703,2195.3,2195.2,4.55539358]
[1750601791158,8.703,2195.3,2195.2,4.60094256]
[1750601791655,11.7097,2195.3,2194.9,4.55588004]
[1750601791952,11.7097,2195.3,2195.0,4.55575588]
[1750601792137,0.59555204,2195.2,2194.8,4.55619406]
[1750601792335,0.59555204,2195.2,2194.8,4.55613532]
[1750601792551,0.59555204,2195.2,2194.4,1.6636]
[1750601792778,0.59555204,2195.2,2195.0,4.55580379]
[1750601792947,11.5864,2195.8,2195.0,1.6636]
[1750601793262,10.0,2195.6,2195.3,4.55503461]
[1750601793765,11.404,2195.7,2195.0,1.6636]
[1750601793971,11.404,2195.7,2195.5,4.55466238]
[1750601794177,11.404,2195.7,2195.4,4.55497529]
[1750601794386,15.41750281,2195.7,2195.2,4.55536917]
[1750601794571,15.41750281,2195.7,2195.4,4.55497401]
[1750601794774,15.41750281,2195.7,2195.3,4.55507778]
[1750601794981,15.41750281,2195.7,2195.3,4.55508816]
[1750601795354,15.41750281,2195.7,2195.3,4.55514017]
[1750601795548,15.41750281,2195.7,2195.3,4.55505443]
[1750601795756,2.31082166,2195.6,2195.0,1.6636]
[1750601795986,0.55,2195.5,2195.3,4.55516537]
[1750601796167,8.701,2195.4,2195.2,4.55529132]
[1750601797183,8.701,2195.4,2194.5,1.6636]
[1750601797490,8.701,2195.4,2195.1,4.5555034]
[1750601797782,8.701,2195.4,2194.6,4.55663902]
[1750601797783,10.30808558,2195.4,2194.6,4.55663902]
[1750601797973,10.30808558,2195.4,2195.1,4.55548324]
[1750601798296,10.30808558,2195.4,2195.1,4.55544143]
[1750601798593,0.55,2195.3,2195.0,4.55569838]
[1750601798998,2.13685437,2195.3,2194.9,4.55596282]
[1750601799158,8.24994155,2195.3,2194.8,4.55607688]
[1750601799358,8.20438951,2195.3,2194.8,4.55607688]
[1750601799676,0.55,2195.1,2194.5,6.22044095]
[1750601799877,11.401,2195.0,2194.8,4.5560613]
[1750601800068,12.6006552,2195.0,2194.8,4.55604557]
[1750601800271,11.401,2195.0,2194.8,4.55604557]
[1750601800453,11.401,2195.0,2194.3,1.5768]
[1750601800653,5.10570961,2195.1,2194.3,1.5768]
[1750601800883,0.55,2194.9,2194.3,1.5768]
[1750601801093,20.90458903,2195.7,2194.3,1.5768]
[1750601801094,1.5579,2195.6,2195.2,4.55539358]
[1750601801256,11.95714028,2195.5,2195.3,4.55508096]
[1750601801459,2.702,2195.5,2195.4,4.55497859]
[1750601801672,11.4,2195.5,2195.4,4.55497859]
[1750601801899,11.4,2195.5,2194.9,1.5768]
[1750601802211,11.4,2195.5,2195.1,4.55555145]
[1750601802729,4.55531,2195.3,2194.5,6.13358037]
[1750601802926,1.5579,2195.0,2194.2,1.5768]
[1750601803138,11.4,2194.9,2194.6,4.55648796]
[1750601803317,11.4,2194.9,2194.2,1.5768]
[1750601803616,1.5579,2195.0,2194.8,4.5562238]
[1750601803825,11.4,2194.8,2194.7,4.5564314]
[1750601804484,1.5579,2195.3,2194.8,4.55607759]
[1750601804682,12.63430519,2195.9,2194.8,4.55607759]
[1750601804683,2.702,2195.2,2195.0,4.55570524]
[1750601804907,11.399,2195.1,2195.0,4.55570524]
[1750601805228,0.55,2195.0,2194.6,4.5565359]
[1750601805927,0.55,2195.0,2194.7,4.55633694]
[1750601806212,0.55,2195.0,2194.3,1.5537]
[1750601806413,0.59555204,2195.0,2194.5,4.55664348]
[1750601806720,1.80659896,2194.9,2194.3,1.5537]
[1750601807014,8.697,2194.8,2194.4,4.55694426]
[1750601807621,0.04555204,2194.7,2194.1,4.55763486]
[1750601807915,5.15209422,2194.7,2194.2,4.55736442]
[1750601808121,0.59555204,2194.7,2194.3,4.55724088]
[1750601808520,0.59555204,2194.7,2194.3,4.60280848]
[1750601808724,5.15202593,2194.7,2194.2,4.55730365]
[1750601808875,0.59555204,2194.7,2194.3,4.55726007]
[1750601809277,0.59555204,2194.7,2194.2,4.55739447]
[1750601809583,1.5157,2194.6,2194.2,4.55739447]
[1750601809786,11.398,2194.5,2194.0,1.5537]
[1750601809991,0.55,2194.3,2193.8,4.55813061]
[1750601810186,8.695,2194.2,2193.9,4.55799954]
[1750601810620,8.695,2194.2,2194.1,4.5576774]
[1750601811022,1.5157,2194.6,2194.5,4.55684666]
[1750601811178,1.5157,2194.6,2194.4,4.55695179]
[1750601811179,11.398,2194.6,2194.4,4.55695179]
[1750601811374,11.398,2194.6,2194.5,4.55684666]
[1750601811795,10.945,2194.9,2194.4,4.55701092]
[1750601811998,2.696,2194.9,2194.8,4.5562238]
[1750601812229,2.696,2194.9,2194.8,7.02118498]
[1750601812715,2.696,2195.4,2195.3,4.5551785]
[1750601812882,11.39,2195.4,2195.3,4.5551785]
[1750601813281,11.39,2195.4,2195.2,4.55539055]
[1750601813509,11.39,2195.4,2195.3,4.55518607]
[1750601813903,11.389,2195.4,2195.3,4.55518607]
[1750601815693,4.38330519,2195.9,2195.8,4.55414882]
[1750601815899,13.07430519,2195.9,2195.8,4.55414882]
[1750601816519,1.68830519,2195.9,2195.8,4.55414882]
[1750601816685,10.37830519,2195.9,2195.4,1.6563]
[1750601816999,13.19683571,2195.9,2195.6,4.55455502]
[1750601817185,13.19683571,2195.9,2195.6,4.5544513]
[1750601817621,11.385,2195.8,2195.6,4.5544513]
[1750601817786,11.385,2195.8,2195.2,10.0]
[1750601818101,11.385,2195.8,2195.1,1.6563]
[1750601818430,11.385,2195.8,2195.1,12.32245654]
[1750601818717,11.385,2195.8,2195.4,4.55480994]
[1750601819221,11.385,2195.8,2195.5,4.55476792]
[1750601819980,11.385,2195.8,2195.4,4.55487772]
[1750601820185,11.385,2195.8,2195.1,11.6563]
[1750601820418,13.29884822,2195.8,2195.4,4.55492295]
[1750601820814,0.55,2195.5,2194.8,1.5768]
[1750601821025,3.19950519,2195.9,2195.1,4.55560111]
[1750601821219,2.695,2195.6,2195.5,4.55477112]
[1750601821957,4.38330519,2195.9,2195.8,4.55414882]
[1750601822232,13.06830519,2195.9,2195.8,4.55414882]
[1750601822398,1.68830519,2195.9,2195.8,4.55414882]
[1750601822793,1.68830519,2195.9,2195.5,4.55473163]
[1750601823000,0.55,2195.7,2195.1,6.1322579]
[1750601823205,0.55,2195.5,2195.0,4.55566901]
[1750601823406,10.3214,2195.4,2195.0,4.55566901]
[1750601823624,0.55,2195.2,2194.7,6.13322318]
[1750601823826,8.684,2195.1,2194.6,4.5565548]
[1750601824025,2.695,2195.0,2194.9,4.55601621]
[1750601824328,11.378,2195.0,2194.8,4.5561966]
[1750601824623,11.378,2195.0,2194.9,4.55601621]
[1750601825190,10.943,2195.5,2195.2,4.55519495]
[1750601825393,11.378,2195.4,2195.2,4.55519495]
[1750601825594,13.6101,2195.4,2194.9,4.55597646]
[1750601825788,13.6101,2195.4,2195.0,4.55570924]
[1750601826030,13.6101,2195.4,2194.9,4.55597646]
[1750601826031,1.6517,2195.2,2194.4,0.4520789]
[1750601826230,8.682,2195.1,2194.8,4.5560286]
[1750601826405,8.682,2195.1,2194.9,4.55589439]
[1750601826807,10.71537,2195.1,2194.3,4.55707354]
[1750601827028,10.71537,2195.1,2194.7,4.55629287]
[1750601827232,10.71537,2195.1,2194.6,4.55653309]
[1750601827524,0.04555204,2195.0,2194.5,4.556656]
[1750601827830,0.55,2194.6,2193.8,1.5968]
[1750601828132,11.42155204,2194.5,2194.1,4.55756216]
[1750601828331,6.20823159,2194.7,2193.8,1.5968]
[1750601828332,11.376,2194.4,2193.8,1.5968]
[1750601828497,8.681,2194.3,2193.9,4.55789201]
[1750601828917,8.681,2194.3,2194.0,4.55778585]
[1750601829123,8.681,2194.3,2193.9,4.55798494]
[1750601829432,8.681,2194.3,2193.5,1.5968]
[1750601829433,8.681,2194.3,2194.0,4.55788419]
[1750601829591,8.681,2194.3,2193.6,0.0455761]
[1750601829592,8.681,2194.3,2193.5,1.5968]
[1750601829791,8.681,2194.3,2194.0,4.55778018]
[1750601830032,8.681,2194.3,2194.1,4.55761667]
[1750601830395,8.681,2194.3,2194.0,4.5577793]
[1750601830600,8.681,2194.3,2193.5,3.66776978]
[1750601830928,8.681,2194.3,2193.6,0.04557574]
[1750601831124,10.944,2194.5,2194.3,4.55707146]
[1750601831327,10.944,2194.5,2194.4,4.60262404]
[1750601831328,19.624,2194.5,2194.4,4.60262404]
[1750601831498,19.624,2194.5,2194.4,4.55705432]
[1750601833418,19.624,2194.5,2194.3,4.55717325]
[1750601834140,11.373,2194.4,2194.3,4.55726199]
[1750601834303,10.944,2194.5,2194.4,4.55705432]
[1750601834619,19.621,2194.5,2194.4,4.55705432]
[1750601835008,19.621,2194.5,2193.8,6.15490916]
[1750601835009,19.621,2194.5,2193.8,1.5968]
[1750601835319,19.621,2194.5,2194.2,4.55730925]
[1750601835546,19.621,2194.5,2194.3,4.55715253]
[1750601835856,10.0,2194.4,2193.8,1.5968]
[1750601836022,8.676,2194.3,2193.5,2.05219549]
[1750601836223,10.59555204,2194.2,2193.2,1.5968]
[1750601836424,11.6517,2194.0,2193.6,4.55871396]
[1750601836656,11.371,2193.9,2193.5,4.55887825]
[1750601836859,11.371,2193.9,2193.5,4.55886705]
[1750601837159,0.55,2193.7,2192.6,12.33653744]
[1750601837326,0.55,2193.7,2192.9,4.55998108]
[1750601837327,4.5590234,2193.5,2192.9,4.55998108]
[1750601837521,8.675,2193.4,2193.0,4.55994389]
[1750601837756,2.696,2193.3,2193.1,4.55973313]
[1750601837967,8.675,2193.2,2193.1,4.55973313]
[1750601838336,8.675,2193.2,2193.0,4.55988088]
[1750601838536,8.675,2193.2,2193.1,4.55975559]
[1750601839340,2.696,2194.0,2193.4,4.55913194]
[1750601839542,2.696,2194.0,2193.3,1.5331]
[1750601839543,11.369,2193.9,2193.6,4.55871626]
[1750601839756,8.673,2193.8,2193.7,4.55839199]
[1750601839979,8.673,2193.8,2193.4,4.55913194]
[1750601840279,8.673,2193.8,2193.6,4.55871385]
[1750601840454,8.673,2193.8,2193.6,4.55869908]
[1750601840655,8.673,2193.8,2193.1,10.91653106]
[1750601840856,1.4803,2193.7,2193.3,4.55915042]
[1750601841183,8.673,2193.6,2193.4,4.55911076]
[1750601841379,8.673,2193.6,2192.7,4.56039044]
[1750601841380,2.0303,2193.5,2192.3,2.01205111]
[1750601841582,2.0303,2193.5,2191.0,0.005]
[1750601841583,1.4803,2192.7,2191.6,1.5331]
[1750601841794,10.55,2192.5,2191.6,1.5331]
[1750601841995,0.55,2192.3,2191.7,4.56266824]
[1750601842203,8.672,2192.2,2191.8,0.04561903]
[1750601842344,6.04090157,2192.7,2191.8,0.04561903]
[1750601842345,1.4803,2192.7,2191.8,0.04561903]
[1750601842551,2.681,2192.9,2192.2,10.0]
[1750601842794,8.675,2192.8,2192.7,4.5605874]
[1750601843552,1.4803,2193.1,2193.0,4.55996352]
[1750601843765,12.8363,2193.1,2193.0,4.55996352]
[1750601843963,1.4803,2193.1,2193.0,4.55996352]
[1750601844178,11.356,2193.1,2193.0,5.47197676]
[1750601844386,11.355,2193.1,2192.9,4.56008779]
[1750601844544,11.355,2193.1,2193.0,4.55996352]
[1750601844743,11.355,2193.1,2192.9,4.56008864]
[1750601845057,11.355,2193.1,2193.0,4.55996352]
[1750601846722,12.4876,2193.4,2193.3,4.5593398]
[1750601846995,11.354,2193.4,2193.3,4.5593398]
[1750601847208,11.354,2193.4,2193.1,4.55965521]
[1750601847361,1.58515204,2193.3,2193.0,4.55985465]
[1750601847702,1.58515204,2193.3,2192.4,10.0]
[1750601847703,0.55,2193.2,2192.4,1.5221]
[1750601847982,9.26655204,2193.1,2192.9,4.56008355]
[1750601848180,9.221,2193.1,2192.9,4.56008355]
[1750601848584,8.671,2193.1,2193.0,4.55996352]
[1750601848783,8.671,2193.1,2192.9,4.56009094]
[1750601848987,8.671,2193.1,2192.4,6.08329066]
[1750601849200,0.04555204,2193.0,2192.9,4.56005231]
[1750601850970,8.671,2193.1,2193.0,4.55996352]
[1750601851191,1.4632,2193.6,2192.5,4.56100342]
[1750601851353,11.35,2193.5,2193.4,4.55911546]
[1750601851554,10.0,2193.4,2193.3,4.55921984]
[1750601851792,10.0,2193.4,2192.9,4.55999384]
[1750601851994,0.55,2193.2,2193.0,4.55984244]
[1750601852189,0.55,2193.4,2193.3,4.55913409]
[1750601852485,1.59528265,2193.5,2193.4,4.55913194]
[1750601852788,12.94428265,2193.5,2193.4,4.55913194]
[1750601852996,4.27728265,2193.5,2193.4,4.55913194]
[1750601853188,12.94428265,2193.5,2193.4,4.55913194]
[1750601853895,12.94428265,2193.5,2193.3,4.55923467]
[1750601854069,14.38503092,2193.5,2193.3,4.55923467]
[1750601854465,14.38503092,2193.5,2193.4,4.55913194]
[1750601855013,1.59528265,2193.5,2193.4,4.55913194]
[1750601855162,1.59528265,2193.5,2193.4,6.04891593]
[1750601855500,1.59528265,2193.5,2193.4,6.00333194]
[1750601856293,1.59528265,2193.5,2193.4,16.04891688]
[1750601856496,10.953,2194.3,2194.2,6.00166969]
[1750601856697,2.682,2195.4,2195.3,4.55518607]
[1750601856903,1.70119706,2195.5,2195.4,5.99917859]
[1750601856904,0.23799706,2195.5,2195.4,5.99917859]
[1750601857107,11.345,2196.0,2195.4,1.48974309]
[1750601857609,11.345,2196.0,2195.9,4.55394143]
[1750601857906,10.0,2195.9,2195.1,5.99976283]
[1750601858066,1.4632,2195.7,2195.3,4.5551818]
[1750601858267,8.70455204,2195.6,2195.0,4.55580865]
[1750601858581,11.0167752,2195.5,2194.5,4.55684666]
[1750601858898,2.72655204,2195.4,2195.1,4.55556638]
[1750601859088,8.659,2195.3,2195.1,4.55556638]
[1750601859288,0.55,2195.2,2194.4,1.4442]
[1750601859469,0.59555204,2195.2,2194.4,1.4442]
[1750601859808,0.55,2195.0,2194.4,4.55692811]
[1750601859967,0.55,2194.8,2194.5,4.55680031]
[1750601860165,2.681,2194.7,2194.4,4.55690106]
[1750601860362,8.658,2194.6,2193.8,4.55813769]
[1750601860669,0.55,2194.9,2194.6,4.55654643]
[1750601860987,0.55,2194.9,2193.7,4.55850845]
[1750601860988,0.55,2194.7,2193.4,4.55901754]
[1750601861303,0.59555204,2194.7,2194.4,4.55689392]
[1750601861599,11.337,2194.6,2194.2,4.55744033]
[1750601861819,0.55,2194.4,2193.2,7.53448842]
[1750601861967,1.1968,2194.1,2193.5,4.55881539]
[1750601862167,11.93155204,2194.0,2193.6,4.55868888]
[1750601862409,0.55,2193.8,2193.1,4.55967405]
[1750601862604,0.55,2193.8,2193.2,4.55954769]
[1750601862605,0.55,2193.6,2193.2,4.55954769]
[1750601862914,0.04555204,2193.5,2193.3,4.55933657]
[1750601863094,11.335,2193.4,2192.6,5.73461598]
[1750601863299,12.5318,2193.4,2192.8,4.56037942]
[1750601863605,0.04555204,2193.3,2192.9,4.56017146]
[1750601863906,0.55,2193.3,2192.4,6.16938491]
[1750601864092,0.59555204,2193.3,2192.2,1.174]
[1750601864293,0.04555204,2193.3,2192.2,5.73559461]
[1750601864504,11.334,2193.2,2193.0,4.55987804]
[1750601864696,11.334,2193.2,2192.8,4.56034716]
[1750601865005,0.59555204,2193.1,2192.3,4.56138174]
[1750601865170,0.59555204,2193.1,2192.6,4.56078335]
[1750601865572,0.59555204,2193.1,2192.1,4.56180699]
[1750601865573,0.59555204,2193.1,2192.0,4.5619984]
[1750601865922,11.884,2193.0,2192.7,4.56043052]
[1750601866103,0.04555204,2192.9,2192.0,10.0]
[1750601866275,1.1968,2193.4,2193.0,4.55979491]
[1750601866470,11.92855204,2193.3,2193.0,4.55979491]
[1750601866675,11.333,2193.3,2192.4,14.56121145]
[1750601866916,11.333,2193.3,2193.2,4.55954769]
[1750601867075,1.1984,2193.7,2193.4,4.55906899]
[1750601867386,11.334,2193.6,2193.5,4.558757]
[1750601870764,0.55,2193.5,2192.9,4.55997765]
[1750601871069,0.59555204,2193.5,2193.3,4.5593398]
[1750601871265,8.649,2193.4,2192.8,4.56037942]
[1750601871560,2.682,2193.6,2192.9,0.45603794]
[1750601871561,8.648,2193.3,2192.9,0.45603794]
[1750601871721,8.648,2193.2,2192.4,1.1786]
[1750601871930,0.55,2193.0,2192.4,5.73964639]
[1750601872116,0.55,2193.0,2192.2,10.0]
[1750601872117,11.35855204,2192.9,2192.2,4.56157904]
[1750601872317,11.313,2192.9,2192.6,4.56059366]
[1750601872543,0.55,2192.7,2192.4,4.56119761]
[1750601872757,8.69255204,2192.6,2192.3,4.56131957]
[1750601873048,8.647,2192.6,2192.3,4.56121881]
[1750601873250,0.55,2192.6,2192.5,4.56100342]
[1750601873439,0.04555204,2192.8,2192.7,4.5605874]
[1750601873639,1.158,2193.5,2192.9,4.56017146]
[1750601873839,8.647,2193.4,2193.1,4.55967956]
[1750601874042,8.647,2193.3,2193.2,4.55954769]
[1750601876434,0.55,2193.6,2193.4,4.55904808]
[1750601876635,10.952,2193.9,2193.8,4.55830066]
[1750601876872,8.644,2193.9,2193.8,4.55830066]
[1750601877060,9.7371,2193.9,2193.7,4.55847278]
[1750601877264,10.97731,2193.9,2193.8,4.55830066]
[1750601877474,10.97731,2193.9,2193.7,4.55840367]
[1750601877642,0.59555204,2193.8,2193.6,4.55862913]
[1750601877976,0.55,2193.8,2193.7,4.55850845]
[1750601878147,10.97731,2193.9,2193.8,4.55830066]
[1750601878354,9.7371,2193.9,2193.8,4.55830066]
[1750601878673,9.7371,2193.9,2193.7,4.55836011]
[1750601878885,0.59555204,2193.8,2193.6,4.55861238]
[1750601879041,0.59555204,2193.8,2192.7,5.47251409]
[1750601879042,0.59555204,2193.8,2193.7,4.55850845]
[1750601879374,1.89531724,2193.8,2192.9,1.1645]
[1750601879547,0.59555204,2193.8,2193.6,4.55861859]
[1750601880148,0.59555204,2193.8,2193.7,4.55850845]
[1750601880551,0.59555204,2193.8,2193.6,4.55861361]
[1750601880776,0.59555204,2193.8,2193.5,4.55872192]
[1750601880972,0.59555204,2193.8,2193.6,4.55860107]
[1750601881187,0.04555204,2193.8,2193.7,4.55850845]
[1750601881498,8.68455204,2193.8,2193.5,4.55881984]
[1750601881798,0.55,2193.5,2192.6,1.1017]
[1750601882000,8.68355204,2193.4,2193.2,4.55953642]
[1750601882174,3.26055204,2193.3,2193.2,4.55953642]
[1750601882374,2.71055204,2193.3,2193.2,4.55953642]
[1750601882580,11.302,2193.3,2193.2,4.55953642]
[1750601883278,0.55,2193.2,2193.1,4.55956128]
[1750601883684,1.2057,2194.2,2193.1,2.05924313]
[1750601883999,1.2057,2194.2,2194.1,4.5576774]
[1750601884204,9.8417,2194.2,2194.1,4.5576774]
[1750601884507,10.0,2194.1,2192.8,15.86137199]
[1750601884673,10.55,2194.1,2194.0,4.55788514]
[1750601884873,0.55,2194.0,2193.9,4.5579049]
[1750601885377,10.0,2194.1,2194.0,4.55788514]
[1750601885586,10.55,2194.1,2194.0,4.55788514]
[1750601886464,0.55,2194.1,2194.0,4.55788514]
[1750601886817,10.40412204,2194.1,2194.0,4.55788514]
[1750601886968,9.183,2194.1,2194.0,4.55788514]
[1750601887364,3.8609,2194.5,2194.3,4.55726199]
[1750601887570,8.632,2194.4,2194.3,4.55726199]
[1750601887799,3.8609,2194.5,2194.4,4.55705432]
[1750601888073,8.631,2194.4,2194.3,4.5571649]
[1750601888302,9.181,2194.4,2194.3,4.5571649]
[1750601889190,10.48519,2194.4,2194.3,4.5571649]
[1750601889402,10.48519,2194.4,2194.2,4.55736289]
[1750601889403,10.0,2194.3,2194.2,4.55736289]
[1750601890065,10.0,2194.3,2194.1,4.55758928]
[1750601890273,0.04555204,2194.2,2194.1,4.5576774]
[1750601890590,2.59362624,2194.2,2194.1,4.5576774]
[1750601890801,10.0,2194.2,2194.1,4.5576774]
[1750601891178,10.55,2194.2,2194.1,4.5576774]
[1750601891474,10.55,2194.1,2193.5,1.1665]
[1750601891677,10.55,2193.9,2193.5,4.55881912]
[1750601891879,10.55,2193.7,2193.4,4.55908]
[1750601892130,18.626,2193.6,2193.5,4.5587904]
[1750601892881,18.626,2193.6,2193.4,4.55906008]
[1750601893105,20.68462251,2193.6,2193.5,4.55892409]
[1750601893313,8.626,2193.6,2193.5,4.55892409]
[1750601893612,2.664,2193.8,2193.5,4.55892409]
[1750601893613,11.288,2193.8,2193.7,4.55850845]
[1750601894117,11.288,2193.8,2193.1,1.1665]
[1750601894118,0.55,2193.7,2193.1,1.1665]
[1750601894439,11.838,2193.8,2193.3,4.55917889]
[1750601894440,9.79335204,2193.6,2193.3,4.55917889]
[1750601894626,9.79335204,2193.6,2192.8,1.1665]
[1750601894627,0.55,2193.5,2192.8,1.1665]
[1750601894917,0.55,2193.3,2192.8,1.1665]
[1750601895084,0.55,2193.3,2193.2,4.55954769]
[1750601895279,9.172,2193.3,2193.2,4.55954769]
[1750601895506,1.1238,2193.6,2193.5,4.55892409]
[1750601895730,8.622,2193.9,2193.5,4.55892409]
[1750601895937,8.622,2194.0,2193.3,1.1518]
[1750601896136,2.70955204,2193.9,2193.3,4.55917396]
[1750601896406,1.6696,2193.8,2193.5,4.55879145]
[1750601896632,9.21655204,2193.7,2193.0,1.1518]
[1750601896811,8.621,2193.7,2193.3,4.55915819]
[1750601897011,8.621,2193.7,2193.2,4.55953323]
[1750601897012,0.97406,2193.6,2193.2,4.55953323]
[1750601897246,0.04555204,2193.5,2193.2,4.55953323]
[1750601897447,8.62,2193.4,2193.0,4.5598883]
[1750601897608,3.82915204,2193.3,2193.0,14.55977771]
[1750601897810,3.82915204,2193.3,2193.0,10.0]
[1750601898018,1.70083486,2193.2,2192.9,10.0]
[1750601898236,8.66455204,2193.1,2192.8,10.0]
[1750601898437,1.1196,2192.9,2192.3,10.0]
[1750601898611,8.66455204,2192.8,2192.7,10.0]
[1750601898812,8.619,2192.8,2192.5,14.56090928]
[1750601899026,2.70955204,2192.7,2192.5,14.56090928]
[1750601899240,2.70955204,2192.7,2192.3,4.56127661]
[1750601899241,3.95436724,2192.7,2192.4,10.0]
[1750601899436,3.95436724,2192.7,2192.5,4.56088308]
[1750601899750,1.29036724,2192.7,2191.9,0.55]
[1750601900066,11.284,2192.6,2192.4,10.0]
[1750601900215,0.04555204,2192.5,2192.4,10.0]
[1750601900415,0.04555204,2192.5,2192.1,4.56170216]
[1750601900626,1.1196,2192.4,2192.3,10.55]
[1750601900839,1.1196,2192.4,2192.3,0.55]
[1750601901040,1.1196,2192.4,2192.3,10.55]
[1750601901337,1.1196,2192.4,2192.3,10.0]
[1750601901674,0.04555204,2192.5,2192.2,4.56162758]
[1750601901878,8.617,2192.4,2192.0,0.55]
[1750601902170,0.04555204,2192.3,2192.2,0.55]
[1750601902725,0.04555204,2192.3,2192.2,10.55]
[1750601903041,12.98540724,2192.3,2192.2,0.55]
[1750601903256,12.0736,2192.3,2192.2,10.55]
[1750601903473,12.0736,2192.3,2192.2,15.11162758]
[1750601903962,12.0736,2192.3,2192.2,10.55]
[1750601904320,16.63501951,2192.3,2192.2,10.0]
[1750601904527,12.0736,2192.3,2192.2,10.0]
[1750601904840,18.41700837,2192.3,2192.2,10.0]
[1750601905171,13.85558886,2192.3,2192.2,10.0]
[1750601905905,0.55,2192.2,2191.9,4.5621535]
[1750601906054,0.55,2192.0,2191.9,4.5621535]
[1750601906256,10.55,2192.0,2191.8,4.07001487]
[1750601906459,19.165,2191.9,2191.8,4.07001487]
[1750601906859,0.55,2191.8,2191.7,4.56262455]
[1750601907065,1.6696,2191.7,2191.1,1.1518]
[1750601907300,1.6696,2191.7,2191.2,4.56355037]
[1750601907301,10.55,2191.5,2191.2,4.56355037]
[1750601907587,0.55,2191.2,2190.4,1.1518]
[1750601907776,9.7326,2191.1,2190.9,4.56432333]
[1750601907975,1.24725589,2191.3,2191.1,4.56391766]
[1750601908288,9.163,2191.2,2191.0,4.5690249]
[1750601908467,10.2826,2191.2,2191.0,0.005]
[1750601908794,0.04555204,2191.1,2191.0,0.005]
[1750601908957,0.59555204,2191.1,2191.0,0.005]
[1750601909487,1.71515204,2191.1,2191.0,0.005]
[1750601909855,11.71515204,2191.1,2191.0,0.005]
[1750601910085,16.23351766,2191.1,2191.0,0.005]
[1750601910401,16.23351766,2191.1,2190.0,4.56602269]
[1750601910402,1.193,2190.2,2188.6,1.1472]
[1750601910606,0.59555204,2190.1,2189.7,4.56669998]
[1750601910818,0.04555204,2190.1,2190.0,4.56621004]
[1750601911021,0.59555204,2190.7,2190.6,4.56495937]
[1750601911225,8.612,2190.7,2189.9,0.45275625]
[1750601911424,2.645,2190.6,2189.2,12.33653744]
[1750601911583,1.17705204,2190.5,2189.1,12.33653744]
[1750601911930,12.1892052,2190.4,2189.3,4.56767003]
[1750601912076,11.257,2190.4,2190.2,4.56563877]
[1750601912276,11.257,2190.4,2189.5,4.56725279]
[1750601912492,2.646,2190.4,2190.3,14.56558462]
[1750601912690,8.611,2190.5,2190.4,4.56537618]
[1750601912930,1.21724917,2191.0,2190.8,4.56453933]
[1750601913080,11.258,2190.9,2190.8,4.56453933]
[1750601913290,11.258,2190.9,2190.3,10.0]
[1750601913490,0.04555204,2190.8,2190.3,10.0]
[1750601913691,0.55,2190.7,2190.4,4.56537618]
[1750601913899,8.612,2190.6,2190.5,4.56504409]
[1750601914633,9.82824917,2191.0,2190.7,10.0]
[1750601914788,9.82824917,2191.0,2190.9,4.56433429]
[1750601914995,0.55,2190.9,2190.5,4.56504126]
[1750601915299,0.55,2190.7,2190.6,4.56495937]
[1750601915726,1.21724917,2191.0,2190.9,4.56433429]
[1750601917828,1.21724917,2191.0,2190.9,5.57650956]
[1750601918134,1.21724917,2191.0,2190.9,6.06737007]
[1750601918431,12.47424917,2191.0,2190.4,4.56537618]
[1750601918629,0.04555204,2190.9,2190.3,0.5365]
[1750601918842,0.04555204,2190.9,2190.6,4.56491471]
[1750601919024,1.29753216,2190.9,2190.5,4.56505544]
[1750601919200,1.6899,2190.8,2190.5,4.56505544]
[1750601919399,0.55,2190.6,2190.0,0.5365]
[1750601919607,0.55,2190.4,2189.6,0.5365]
[1750601919945,11.30155204,2190.3,2189.6,0.5365]
[1750601920131,11.256,2190.3,2190.0,4.56604564]
[1750601920448,0.59555204,2190.2,2189.9,4.56630678]
[1750601920946,0.04555204,2190.2,2190.0,4.56608232]
[1750601921135,0.04555204,2190.2,2190.0,4.56617343]
[1750601921317,0.04555204,2190.2,2190.0,4.566085]
[1750601921644,8.61,2190.1,2190.0,4.56621004]
[1750601922054,8.61,2190.1,2189.7,4.56683563]
[1750601922356,8.61,2190.1,2190.0,4.56621004]
[1750601922729,1.22,2190.6,2190.3,4.56540439]
[1750601922913,11.85155204,2190.5,2190.3,4.56546486]
[1750601923149,11.256,2190.4,2189.8,4.56662708]
[1750601923323,11.256,2190.4,2190.2,4.56564337]
[1750601923530,11.256,2190.4,2190.2,4.56578221]
[1750601923765,1.7849,2190.3,2189.1,0.46513114]
[1750601923927,1.2349,2190.1,2188.9,0.5365]
[1750601924129,0.55,2189.9,2188.9,0.5365]
[1750601924331,19.61955204,2190.0,2189.7,4.56683563]
[1750601924332,0.04555204,2189.8,2189.7,4.56683563]
[1750601924658,10.965,2190.0,2189.9,4.56641855]
[1750601924825,19.574,2190.0,2189.9,4.56641855]
[1750601925030,19.574,2190.0,2189.8,4.56659329]
[1750601925031,0.55,2189.9,2189.7,4.5666881]
[1750601925225,0.04555204,2189.9,2189.8,4.56662708]
[1750601925562,19.574,2190.0,2189.9,4.56641855]
[1750601925860,22.221,2190.0,2189.9,4.56641855]
[1750601926056,19.573,2190.0,2189.9,4.56641855]
[1750601926658,19.573,2190.0,2189.9,5.47972311]
[1750601926862,8.609,2190.0,2189.9,5.47957639]
[1750601927360,8.609,2190.0,2189.9,4.56627183]
[1750601928028,1.2349,2190.1,2190.0,4.56621004]
[1750601928235,12.4899,2190.1,2190.0,4.56621004]
[1750601928418,2.647,2190.1,2190.0,4.56608355]
[1750601928620,11.255,2190.1,2190.0,4.56621004]
[1750601929457,1.1927,2190.6,2190.5,4.56516776]
[1750601929653,12.4477,2190.6,2189.9,0.5365]
[1750601929828,0.18836393,2190.5,2190.2,4.56561077]
[1750601930014,11.256,2190.4,2190.2,4.56561077]
[1750601930220,11.256,2190.4,2190.3,4.56539452]